[Event "*** Titled Tuesday Blitz"]
[Site "Chess.com"]
[Date "2021.02.16"]
[Round "6"]
[White "marianokar"]
[Black "Michaelson_11"]
[Result "1-0"]
[WhiteElo "2438"]
[BlackElo "2270"]
[TimeControl "180+1"]
[EndTime "11:09:23 PST"]
[Termination "marianokar won by checkmate"]

1. e4 {[%clk 0:03:00.9]} 1... e6 {[%clk 0:02:56.9]} 2. d3 {[%clk 0:02:59.7]}
2... d5 {[%clk 0:02:57.8]} 3. Nd2 {[%clk 0:03:00.2]} 3... Nf6 {[%clk 0:02:53.6]}
4. Ngf3 {[%clk 0:03:00.7]} 4... c5 {[%clk 0:02:54.2]} 5. g3 {[%clk 0:03:00.4]}
5... Nc6 {[%clk 0:02:54.7]} 6. Bg2 {[%clk 0:03:00.9]} 6... g6 {[%clk 0:02:53.3]}
7. O-O {[%clk 0:03:01]} 7... Bg7 {[%clk 0:02:52.3]} 8. Re1 {[%clk 0:03:01]} 8...
O-O {[%clk 0:02:51.2]} 9. c3 {[%clk 0:03:00.8]} 9... a5 {[%clk 0:02:44]} 10. a4
{[%clk 0:03:00]} 10... d4 {[%clk 0:02:33.7]} 11. Nc4 {[%clk 0:02:56.4]} 11...
dxc3 {[%clk 0:02:29]} 12. bxc3 {[%clk 0:02:54.8]} 12... Nd7 {[%clk 0:02:28.8]}
13. Qb3 {[%clk 0:02:53.3]} 13... b6 {[%clk 0:02:16.3]} 14. Bg5 {[%clk
0:02:40.5]} 14... f6 {[%clk 0:02:01.4]} 15. Be3 {[%clk 0:02:33.7]} 15... Ba6
{[%clk 0:01:58.6]} 16. d4 {[%clk 0:02:31.7]} 16... Qc7 {[%clk 0:01:46.9]} 17. d5
{[%clk 0:01:56.2]} 17... Bxc4 {[%clk 0:01:36]} 18. Qxc4 {[%clk 0:01:54.5]} 18...
Nce5 {[%clk 0:01:36.3]} 19. Nxe5 {[%clk 0:01:48.9]} 19... Nxe5 {[%clk
0:01:37.2]} 20. Qb5 {[%clk 0:01:34]} 20... Rad8 {[%clk 0:01:12.2]} 21. dxe6
{[%clk 0:01:07.1]} 21... Rd6 {[%clk 0:01:09.4]} 22. f4 {[%clk 0:00:46]} 22...
Ng4 {[%clk 0:01:03.6]} 23. Qc4 {[%clk 0:00:46.1]} 23... Nxe3 {[%clk 0:00:56.6]}
24. Rxe3 {[%clk 0:00:47]} 24... Qe7 {[%clk 0:00:56.4]} 25. f5 {[%clk 0:00:44.6]}
25... Rfd8 {[%clk 0:00:44.8]} 26. Bf1 {[%clk 0:00:39.5]} 26... Bh6 {[%clk
0:00:35.3]} 27. Re2 {[%clk 0:00:38.2]} 27... gxf5 {[%clk 0:00:22.1]} 28. exf5
{[%clk 0:00:37.7]} 28... Rd5 {[%clk 0:00:22.7]} 29. Qg4+ {[%clk 0:00:36.4]}
29... Kf8 {[%clk 0:00:16.2]} 30. Qh5 {[%clk 0:00:33.4]} 30... Kg7 {[%clk
0:00:16.3]} 31. Rae1 {[%clk 0:00:30.9]} 31... Bd2 {[%clk 0:00:14.8]} 32. Qg4+
{[%clk 0:00:29]} 32... Kf8 {[%clk 0:00:13.5]} 33. Rb1 {[%clk 0:00:28.9]} 33...
Bxc3 {[%clk 0:00:12.6]} 34. Rxb6 {[%clk 0:00:25.7]} 34... Bd4+ {[%clk
0:00:12.6]} 35. Kg2 {[%clk 0:00:25.5]} 35... Be5 {[%clk 0:00:07.1]} 36. Qh5
{[%clk 0:00:23.8]} 36... Kg7 {[%clk 0:00:05.9]} 37. Qg4+ {[%clk 0:00:22.3]}
37... Kf8 {[%clk 0:00:05.7]} 38. Qh5 {[%clk 0:00:21.2]} 38... Kg7 {[%clk
0:00:05.9]} 39. Kh3 {[%clk 0:00:21.8]} 39... c4 {[%clk 0:00:05.8]} 40. Bg2
{[%clk 0:00:21.8]} 40... c3 {[%clk 0:00:04.9]} 41. Bxd5 {[%clk 0:00:21.2]} 41...
Rxd5 {[%clk 0:00:05.8]} 42. Qf3 {[%clk 0:00:19]} 42... Kh6 {[%clk 0:00:02.8]}
43. Qxd5 {[%clk 0:00:18.5]} 43... c2 {[%clk 0:00:02]} 44. Rxc2 {[%clk
0:00:18.4]} 44... Qg7 {[%clk 0:00:02.4]} 45. Qd2+ {[%clk 0:00:18.5]} 45... Kh5
{[%clk 0:00:02.5]} 46. Qe2+ {[%clk 0:00:18.5]} 46... Kh6 {[%clk 0:00:02.6]} 47.
Qe3+ {[%clk 0:00:18.9]} 47... Kh5 {[%clk 0:00:02.6]} 48. Qf3+ {[%clk 0:00:19.2]}
48... Kh6 {[%clk 0:00:02.9]} 49. Re2 {[%clk 0:00:19]} 49... Qg5 {[%clk
0:00:02.8]} 50. Qe3 {[%clk 0:00:19.4]} 50... Bf4 {[%clk 0:00:01.8]} 51. Qxf4
{[%clk 0:00:18.9]} 51... Qxf4 {[%clk 0:00:01.2]} 52. gxf4 {[%clk 0:00:19.8]}
52... Kh5 {[%clk 0:00:01.7]} 53. e7 {[%clk 0:00:19.4]} 53... h6 {[%clk
0:00:02.6]} 54. Kg2 {[%clk 0:00:18.4]} 54... Kg4 {[%clk 0:00:02.4]} 55. Rb8
{[%clk 0:00:17.1]} 55... h5 {[%clk 0:00:02.2]} 56. e8=Q {[%clk 0:00:17.2]} 56...
Kxf4 {[%clk 0:00:01.7]} 57. Qe4+ {[%clk 0:00:16.2]} 57... Kg5 {[%clk 0:00:01.9]}
58. h4+ {[%clk 0:00:16.9]} 58... Kh6 {[%clk 0:00:01.1]} 59. Rh8+ {[%clk
0:00:17.8]} 59... Kg7 {[%clk 0:00:01.2]} 60. Qe7+ {[%clk 0:00:18.7]} 60... Kxh8
{[%clk 0:00:01.5]} 61. Qd8+ {[%clk 0:00:19]} 61... Kg7 {[%clk 0:00:01.8]} 62.
Re7+ {[%clk 0:00:19.9]} 62... Kh6 {[%clk 0:00:02.1]} 63. Qh8# {[%clk 0:00:20.5]}
1-0

[Event "*** Titled Tuesday Blitz"]
[Site "Chess.com"]
[Date "2021.02.16"]
[Round "6"]
[White "kayrakamer"]
[Black "AryanTari"]
[Result "0-1"]
[WhiteElo "2701"]
[BlackElo "2906"]
[TimeControl "180+1"]
[EndTime "11:09:25 PST"]
[Termination "AryanTari won by resignation"]

1. e4 {[%clk 0:03:00.9]} 1... c6 {[%clk 0:02:59.6]} 2. d4 {[%clk 0:03:00.7]}
2... d5 {[%clk 0:03:00.5]} 3. f3 {[%clk 0:03:01.3]} 3... g6 {[%clk 0:03:00.4]}
4. Nc3 {[%clk 0:03:01.1]} 4... Bg7 {[%clk 0:02:58.5]} 5. Be3 {[%clk 0:03:00.8]}
5... Qb6 {[%clk 0:02:58.2]} 6. Qd2 {[%clk 0:02:56.4]} 6... Qxb2 {[%clk
0:02:57.5]} 7. Rb1 {[%clk 0:02:56.2]} 7... Qa3 {[%clk 0:02:57.8]} 8. exd5 {[%clk
0:02:56.1]} 8... Nf6 {[%clk 0:02:58.1]} 9. Bc4 {[%clk 0:02:49.4]} 9... O-O
{[%clk 0:02:39.5]} 10. Nge2 {[%clk 0:02:48.9]} 10... Nbd7 {[%clk 0:02:18.3]} 11.
dxc6 {[%clk 0:02:34.4]} 11... bxc6 {[%clk 0:02:17.6]} 12. O-O {[%clk 0:02:32.3]}
12... Nb6 {[%clk 0:02:17.5]} 13. Bb3 {[%clk 0:02:28.6]} 13... Ba6 {[%clk
0:02:16.9]} 14. Bg5 {[%clk 0:02:15.7]} 14... Rad8 {[%clk 0:02:06.1]} 15. Rfe1
{[%clk 0:02:03.8]} 15... c5 {[%clk 0:02:05.9]} 16. Ne4 {[%clk 0:00:36.8]} 16...
Nxe4 {[%clk 0:01:51.1]} 17. fxe4 {[%clk 0:00:37.7]} 17... c4 {[%clk 0:01:51.7]}
18. Ra1 {[%clk 0:00:35.8]} 18... Qd6 {[%clk 0:01:46]} 19. Qa5 {[%clk 0:00:35.9]}
19... Bb7 {[%clk 0:01:24.5]} 20. Ba4 {[%clk 0:00:36]} 20... Bxe4 {[%clk
0:01:16.5]} 21. c3 {[%clk 0:00:32.5]} 21... h6 {[%clk 0:00:29.5]} 22. Ng3 {[%clk
0:00:26.3]} 22... hxg5 {[%clk 0:00:20]} 23. Nxe4 {[%clk 0:00:26.8]} 23... Qf4
{[%clk 0:00:18.9]} 24. Bc2 {[%clk 0:00:17.4]} 24... Nd5 {[%clk 0:00:19.4]} 25.
Rad1 {[%clk 0:00:12.1]} 25... Ne3 {[%clk 0:00:17.3]} 26. Rd2 {[%clk 0:00:12.5]}
26... Rd5 {[%clk 0:00:15.9]} 27. Qxa7 {[%clk 0:00:10.9]} 27... Nxc2 {[%clk
0:00:13.7]} 28. Rxc2 {[%clk 0:00:11.1]} 28... e5 {[%clk 0:00:13.9]} 29. Rf2
{[%clk 0:00:10.9]} 29... Qh4 {[%clk 0:00:12.6]} 30. Qb7 {[%clk 0:00:10.1]} 30...
Rdd8 {[%clk 0:00:09.1]} 31. dxe5 {[%clk 0:00:08.4]} 31... Bxe5 {[%clk
0:00:07.1]} 32. g3 {[%clk 0:00:08.8]} 32... Qg4 {[%clk 0:00:07.1]} 33. Qe7
{[%clk 0:00:07.4]} 33... Rfe8 {[%clk 0:00:04.6]} 34. Qxf7+ {[%clk 0:00:06.5]}
34... Kh8 {[%clk 0:00:05.2]} 35. Qxg6 {[%clk 0:00:06.6]} 35... Bg7 {[%clk
0:00:05.5]} 36. Kg2 {[%clk 0:00:04.4]} 36... Re6 {[%clk 0:00:04.9]} 37. Qf7
{[%clk 0:00:03]} 37... Rxe4 {[%clk 0:00:04.7]} 38. Ref1 {[%clk 0:00:03.2]} 38...
Re6 {[%clk 0:00:03.2]} 39. Qc7 {[%clk 0:00:03]} 39... Qe4+ {[%clk 0:00:03.6]}
40. Kg1 {[%clk 0:00:03]} 40... Rde8 {[%clk 0:00:04.3]} 41. Rf7 {[%clk
0:00:02.8]} 41... Qe5 {[%clk 0:00:04.6]} 42. Qb7 {[%clk 0:00:02.7]} 42... Qe3+
{[%clk 0:00:05.1]} 43. R7f2 {[%clk 0:00:03.3]} 43... Qe4 {[%clk 0:00:05.4]} 44.
Qc7 {[%clk 0:00:03.7]} 44... Qe5 {[%clk 0:00:05.9]} 45. Qb7 {[%clk 0:00:03.8]}
45... Qe4 {[%clk 0:00:06.3]} 46. Qc7 {[%clk 0:00:03.8]} 46... Bxc3 {[%clk
0:00:06.5]} 47. Qb7 {[%clk 0:00:03.4]} 47... Bd4 {[%clk 0:00:06.3]} 48. Qc7
{[%clk 0:00:02.8]} 48... Bxf2+ {[%clk 0:00:06.4]} 49. Rxf2 {[%clk 0:00:03.7]}
49... Qe1+ {[%clk 0:00:06.8]} 50. Rf1 {[%clk 0:00:04.3]} 50... Qe3+ {[%clk
0:00:07.1]} 51. Rf2 {[%clk 0:00:04.9]} 51... Qe1+ {[%clk 0:00:07.2]} 52. Rf1
{[%clk 0:00:05.3]} 52... Qe5 {[%clk 0:00:06]} 53. Qf7 {[%clk 0:00:05.4]} 53...
Qe3+ {[%clk 0:00:04.8]} 54. Rf2 {[%clk 0:00:05.9]} 54... Qe1+ {[%clk 0:00:05.1]}
55. Rf1 {[%clk 0:00:06.3]} 55... Qe3+ {[%clk 0:00:05.1]} 56. Rf2 {[%clk
0:00:06.9]} 56... Qc1+ {[%clk 0:00:04]} 57. Rf1 {[%clk 0:00:06.6]} 57... Qc3
{[%clk 0:00:04.3]} 58. Qh5+ {[%clk 0:00:06.3]} 58... Kg7 {[%clk 0:00:04.9]} 59.
Qxg5+ {[%clk 0:00:06.2]} 59... Rg6 {[%clk 0:00:04.5]} 60. Qd5 {[%clk 0:00:06.5]}
60... Qe3+ {[%clk 0:00:04.7]} 61. Kh1 {[%clk 0:00:06.3]} 61... Qe4+ {[%clk
0:00:05.1]} 0-1

[Event "*** Titled Tuesday Blitz"]
[Site "Chess.com"]
[Date "2021.02.16"]
[Round "6"]
[White "TigrVShlyape"]
[Black "sara_khm"]
[Result "1/2-1/2"]
[WhiteElo "2901"]
[BlackElo "2647"]
[TimeControl "180+1"]
[EndTime "11:09:25 PST"]
[Termination "Game drawn - insufficient material"]

1. e4 {[%clk 0:00:25.2]} 1... e5 {[%clk 0:02:57.4]} 2. Nf3 {[%clk 0:00:24.8]}
2... Nc6 {[%clk 0:02:58.1]} 3. Bb5 {[%clk 0:00:24.6]} 3... a6 {[%clk 0:02:57.8]}
4. Ba4 {[%clk 0:00:24.9]} 4... Nf6 {[%clk 0:02:58.2]} 5. O-O {[%clk 0:00:25.3]}
5... b5 {[%clk 0:02:58.9]} 6. Bb3 {[%clk 0:00:25.2]} 6... Bc5 {[%clk 0:02:59.5]}
7. c3 {[%clk 0:00:25.7]} 7... d6 {[%clk 0:02:59.7]} 8. a4 {[%clk 0:00:25]} 8...
Rb8 {[%clk 0:02:59.7]} 9. axb5 {[%clk 0:00:25.4]} 9... axb5 {[%clk 0:02:59.7]}
10. d4 {[%clk 0:00:26]} 10... Bb6 {[%clk 0:03:00.1]} 11. Re1 {[%clk 0:00:26.5]}
11... O-O {[%clk 0:02:59.1]} 12. h3 {[%clk 0:00:26.8]} 12... h6 {[%clk 0:02:59]}
13. Be3 {[%clk 0:00:26.6]} 13... Bb7 {[%clk 0:02:53.3]} 14. Nbd2 {[%clk
0:00:26.7]} 14... Re8 {[%clk 0:02:51.9]} 15. d5 {[%clk 0:00:25.8]} 15... Na5
{[%clk 0:02:49]} 16. Bxb6 {[%clk 0:00:23.8]} 16... cxb6 {[%clk 0:02:49.3]} 17.
Ba2 {[%clk 0:00:23.7]} 17... Rc8 {[%clk 0:02:45.6]} 18. Qe2 {[%clk 0:00:23.4]}
18... Qd7 {[%clk 0:02:35.6]} 19. b4 {[%clk 0:00:22.9]} 19... Nc4 {[%clk
0:02:35.2]} 20. Nxc4 {[%clk 0:00:23.2]} 20... bxc4 {[%clk 0:02:35]} 21. Bxc4
{[%clk 0:00:23.8]} 21... Qc7 {[%clk 0:02:29.4]} 22. Bb5 {[%clk 0:00:24]} 22...
Rf8 {[%clk 0:02:29.8]} 23. c4 {[%clk 0:00:24.3]} 23... Nh5 {[%clk 0:02:28.3]}
24. g3 {[%clk 0:00:23.9]} 24... Qe7 {[%clk 0:02:24.9]} 25. Qe3 {[%clk
0:00:23.3]} 25... Qd8 {[%clk 0:02:21.4]} 26. Nh4 {[%clk 0:00:22.7]} 26... Rb8
{[%clk 0:02:18.9]} 27. Kh2 {[%clk 0:00:22.8]} 27... Bc8 {[%clk 0:02:18.5]} 28.
Bc6 {[%clk 0:00:21.6]} 28... Kh7 {[%clk 0:01:59.4]} 29. Ra7 {[%clk 0:00:20.9]}
29... Nf6 {[%clk 0:01:47.1]} 30. Qf3 {[%clk 0:00:19.6]} 30... Kg8 {[%clk
0:01:43.1]} 31. Nf5 {[%clk 0:00:19.4]} 31... Bxf5 {[%clk 0:01:42.8]} 32. Qxf5
{[%clk 0:00:19.5]} 32... g6 {[%clk 0:01:30.8]} 33. Qf3 {[%clk 0:00:19.5]} 33...
Nh7 {[%clk 0:01:30.2]} 34. Qe3 {[%clk 0:00:18.7]} 34... Kg7 {[%clk 0:01:29.3]}
35. Rea1 {[%clk 0:00:18]} 35... Qf6 {[%clk 0:01:27.9]} 36. Kg2 {[%clk
0:00:17.5]} 36... Rfd8 {[%clk 0:01:25.8]} 37. Rc7 {[%clk 0:00:16.7]} 37... Rdc8
{[%clk 0:01:24.6]} 38. Raa7 {[%clk 0:00:16.6]} 38... Rxc7 {[%clk 0:01:24.5]} 39.
Rxc7 {[%clk 0:00:16.9]} 39... Qd8 {[%clk 0:01:24.5]} 40. Rd7 {[%clk 0:00:16.6]}
40... Qf6 {[%clk 0:01:23.8]} 41. h4 {[%clk 0:00:16.9]} 41... Nf8 {[%clk
0:01:23.3]} 42. Rb7 {[%clk 0:00:17.1]} 42... Rxb7 {[%clk 0:01:21.6]} 43. Bxb7
{[%clk 0:00:17.4]} 43... Qd8 {[%clk 0:01:22.2]} 44. Bc6 {[%clk 0:00:17.5]} 44...
Qc7 {[%clk 0:01:19.7]} 45. c5 {[%clk 0:00:17.7]} 45... bxc5 {[%clk 0:01:19.4]}
46. bxc5 {[%clk 0:00:18.1]} 46... dxc5 {[%clk 0:01:18.5]} 47. Qxc5 {[%clk
0:00:17.9]} 47... Qd8 {[%clk 0:01:14.9]} 48. Qa7 {[%clk 0:00:16.7]} 48... Qd6
{[%clk 0:01:12.3]} 49. Be8 {[%clk 0:00:16.8]} 49... Qf6 {[%clk 0:01:08.9]} 50.
d6 {[%clk 0:00:16.9]} 50... Ne6 {[%clk 0:01:09.1]} 51. Qe7 {[%clk 0:00:11.7]}
51... Qxe7 {[%clk 0:01:05.4]} 52. dxe7 {[%clk 0:00:11.6]} 52... Kf6 {[%clk
0:01:05.3]} 53. Bc6 {[%clk 0:00:10.9]} 53... Kxe7 {[%clk 0:01:05.4]} 54. Bd5
{[%clk 0:00:11.3]} 54... Nc7 {[%clk 0:01:05.3]} 55. Bc4 {[%clk 0:00:11]} 55...
Ne8 {[%clk 0:01:05.6]} 56. Kf3 {[%clk 0:00:11.3]} 56... Nd6 {[%clk 0:01:05.7]}
57. Bd5 {[%clk 0:00:11.5]} 57... f5 {[%clk 0:01:05.1]} 58. Ke3 {[%clk
0:00:10.2]} 58... Kf6 {[%clk 0:01:04.5]} 59. exf5 {[%clk 0:00:09.8]} 59... gxf5
{[%clk 0:01:04.6]} 60. f3 {[%clk 0:00:10]} 60... Ne8 {[%clk 0:01:03.1]} 61. g4
{[%clk 0:00:09.8]} 61... Nc7 {[%clk 0:01:00.4]} 62. Bc4 {[%clk 0:00:09.8]} 62...
fxg4 {[%clk 0:00:58.6]} 63. fxg4 {[%clk 0:00:09.8]} 63... Ne8 {[%clk 0:00:59.2]}
64. Bd3 {[%clk 0:00:09.4]} 64... Nd6 {[%clk 0:00:59.1]} 65. Kf3 {[%clk
0:00:09.9]} 65... Nb7 {[%clk 0:00:56.6]} 66. Bc2 {[%clk 0:00:09.1]} 66... Nc5
{[%clk 0:00:56.8]} 67. Ke3 {[%clk 0:00:09.5]} 67... Ne6 {[%clk 0:00:56.7]} 68.
Be4 {[%clk 0:00:08.6]} 68... Nf4 {[%clk 0:00:56.4]} 69. Kf3 {[%clk 0:00:07.3]}
69... Ne6 {[%clk 0:00:54.4]} 70. Ke3 {[%clk 0:00:07.5]} 70... Nd4 {[%clk
0:00:54.1]} 71. Bd3 {[%clk 0:00:06.8]} 71... Ke6 {[%clk 0:00:54.3]} 72. Ke4
{[%clk 0:00:06.3]} 72... Kf6 {[%clk 0:00:50.9]} 73. Bc4 {[%clk 0:00:05.5]} 73...
Nc6 {[%clk 0:00:47.7]} 74. g5+ {[%clk 0:00:05.6]} 74... hxg5 {[%clk 0:00:46.9]}
75. hxg5+ {[%clk 0:00:06.5]} 75... Kxg5 {[%clk 0:00:43.6]} 76. Bd5 {[%clk
0:00:07.4]} 76... Ne7 {[%clk 0:00:41.4]} 77. Kxe5 {[%clk 0:00:08.3]} 1/2-1/2

[Event "*** Titled Tuesday Blitz"]
[Site "Chess.com"]
[Date "2021.02.16"]
[Round "6"]
[White "1977Ivan"]
[Black "Sibelephant"]
[Result "0-1"]
[WhiteElo "2739"]
[BlackElo "3017"]
[TimeControl "180+1"]
[EndTime "11:09:27 PST"]
[Termination "Sibelephant won on time"]

1. d4 {[%clk 0:03:00.9]} 1... d5 {[%clk 0:02:58.3]} 2. c4 {[%clk 0:03:00.5]}
2... c6 {[%clk 0:02:58.7]} 3. Nf3 {[%clk 0:02:59.9]} 3... Nf6 {[%clk 0:02:59]}
4. Nc3 {[%clk 0:02:58.1]} 4... e6 {[%clk 0:02:59.3]} 5. g3 {[%clk 0:02:58.4]}
5... Nbd7 {[%clk 0:02:58.6]} 6. Bg2 {[%clk 0:02:56.9]} 6... Be7 {[%clk
0:02:58.9]} 7. O-O {[%clk 0:02:55.2]} 7... O-O {[%clk 0:02:59.1]} 8. Nd2 {[%clk
0:02:55.1]} 8... b6 {[%clk 0:02:31.5]} 9. b3 {[%clk 0:02:53.2]} 9... Bb7 {[%clk
0:02:28.1]} 10. e4 {[%clk 0:02:53.1]} 10... Rc8 {[%clk 0:02:18.3]} 11. e5 {[%clk
0:02:36.9]} 11... Ne8 {[%clk 0:02:18.1]} 12. Bb2 {[%clk 0:02:37.4]} 12... Nc7
{[%clk 0:02:15.9]} 13. Re1 {[%clk 0:02:36.6]} 13... c5 {[%clk 0:02:13.6]} 14.
cxd5 {[%clk 0:02:32.1]} 14... cxd4 {[%clk 0:02:13.7]} 15. Nce4 {[%clk
0:01:55.2]} 15... Nxd5 {[%clk 0:01:39.1]} 16. Bxd4 {[%clk 0:01:52.6]} 16... Nc5
{[%clk 0:01:35.9]} 17. Nc4 {[%clk 0:01:47.2]} 17... Nxe4 {[%clk 0:01:34.8]} 18.
Bxe4 {[%clk 0:01:36.3]} 18... g6 {[%clk 0:01:29.3]} 19. Qf3 {[%clk 0:01:25.3]}
19... b5 {[%clk 0:01:26.1]} 20. Ne3 {[%clk 0:01:21.1]} 20... Nxe3 {[%clk
0:01:18.3]} 21. Bxb7 {[%clk 0:01:20.2]} 21... Nc2 {[%clk 0:01:18.3]} 22. Bxc8
{[%clk 0:01:09.1]} 22... Qxd4 {[%clk 0:01:05.9]} 23. Red1 {[%clk 0:00:56.5]}
23... Qxe5 {[%clk 0:01:04.8]} 24. Rac1 {[%clk 0:00:55.7]} 24... Nd4 {[%clk
0:01:05.3]} 25. Rxd4 {[%clk 0:00:52.5]} 25... Qxd4 {[%clk 0:01:05.5]} 26. Rc7
{[%clk 0:00:52]} 26... Bc5 {[%clk 0:00:42.4]} 27. Kg2 {[%clk 0:00:42.9]} 27...
Bb6 {[%clk 0:00:39.9]} 28. Rd7 {[%clk 0:00:24.9]} 28... Qxf2+ {[%clk 0:00:39.9]}
29. Qxf2 {[%clk 0:00:23.3]} 29... Bxf2 {[%clk 0:00:40.5]} 30. Ba6 {[%clk
0:00:22.4]} 30... Bb6 {[%clk 0:00:40.9]} 31. Bxb5 {[%clk 0:00:22.4]} 31... Rc8
{[%clk 0:00:41.1]} 32. Bc4 {[%clk 0:00:22.5]} 32... Rc5 {[%clk 0:00:38.8]} 33.
g4 {[%clk 0:00:20]} 33... h5 {[%clk 0:00:37]} 34. h3 {[%clk 0:00:20.5]} 34...
Re5 {[%clk 0:00:36.1]} 35. Kf3 {[%clk 0:00:18.7]} 35... hxg4+ {[%clk 0:00:29.7]}
36. hxg4 {[%clk 0:00:18]} 36... g5 {[%clk 0:00:30]} 37. a4 {[%clk 0:00:17.4]}
37... Re3+ {[%clk 0:00:29.4]} 38. Kg2 {[%clk 0:00:17.5]} 38... Re4 {[%clk
0:00:29.4]} 39. Kf3 {[%clk 0:00:17.3]} 39... Rf4+ {[%clk 0:00:29.6]} 40. Kg3
{[%clk 0:00:17.2]} 40... Bf2+ {[%clk 0:00:27.2]} 41. Kh3 {[%clk 0:00:17.3]}
41... a5 {[%clk 0:00:26.6]} 42. Rb7 {[%clk 0:00:16.4]} 42... Bc5 {[%clk
0:00:06.3]} 43. Rb5 {[%clk 0:00:15.8]} 43... Bb4 {[%clk 0:00:05.5]} 44. Rxg5+
{[%clk 0:00:14.6]} 44... Kf8 {[%clk 0:00:06]} 45. Kg3 {[%clk 0:00:14.2]} 45...
Bd6 {[%clk 0:00:05.5]} 46. Kg2 {[%clk 0:00:11.9]} 46... Bc7 {[%clk 0:00:04.8]}
47. Rc5 {[%clk 0:00:10.9]} 47... Rxg4+ {[%clk 0:00:04.2]} 48. Kh3 {[%clk
0:00:09.9]} 48... Rg3+ {[%clk 0:00:03.7]} 49. Kh4 {[%clk 0:00:10.2]} 49... Bd6
{[%clk 0:00:04.2]} 50. Rxa5 {[%clk 0:00:10.3]} 50... Rg1 {[%clk 0:00:04.4]} 51.
Rb5 {[%clk 0:00:08.9]} 51... Ke7 {[%clk 0:00:04.2]} 52. a5 {[%clk 0:00:09.1]}
52... Ra1 {[%clk 0:00:04.6]} 53. a6 {[%clk 0:00:08.9]} 53... Kd7 {[%clk
0:00:03.7]} 54. Rb7+ {[%clk 0:00:08.5]} 54... Bc7 {[%clk 0:00:04.1]} 55. Bb5+
{[%clk 0:00:05.2]} 55... Kd6 {[%clk 0:00:04.2]} 56. Bc4 {[%clk 0:00:04.1]} 56...
Kc6 {[%clk 0:00:03.9]} 57. Kg5 {[%clk 0:00:04]} 57... Be5 {[%clk 0:00:02.4]} 0-1

[Event "*** Titled Tuesday Blitz"]
[Site "Chess.com"]
[Date "2021.02.16"]
[Round "6"]
[White "ckgchess"]
[Black "Kapitan_Bayan"]
[Result "0-1"]
[WhiteElo "2756"]
[BlackElo "2498"]
[TimeControl "180+1"]
[EndTime "11:09:27 PST"]
[Termination "Kapitan_Bayan won on time"]

1. e4 {[%clk 0:03:00.9]} 1... Nc6 {[%clk 0:02:58.6]} 2. d4 {[%clk 0:03:00.7]}
2... d5 {[%clk 0:02:58.7]} 3. exd5 {[%clk 0:02:51.4]} 3... Qxd5 {[%clk
0:02:59.6]} 4. Be3 {[%clk 0:02:45.4]} 4... e5 {[%clk 0:02:57.3]} 5. c4 {[%clk
0:02:41.7]} 5... Qa5+ {[%clk 0:02:48]} 6. Bd2 {[%clk 0:02:37.5]} 6... Bb4 {[%clk
0:02:46.5]} 7. d5 {[%clk 0:02:37.3]} 7... Bxd2+ {[%clk 0:02:31.6]} 8. Qxd2
{[%clk 0:02:34]} 8... Qxd2+ {[%clk 0:02:30.5]} 9. Nxd2 {[%clk 0:02:34.9]} 9...
Nd4 {[%clk 0:02:28.4]} 10. O-O-O {[%clk 0:02:34.3]} 10... Bf5 {[%clk 0:02:17.5]}
11. Ngf3 {[%clk 0:02:30]} 11... Nxf3 {[%clk 0:02:14.8]} 12. Nxf3 {[%clk
0:02:30.9]} 12... f6 {[%clk 0:02:13.8]} 13. c5 {[%clk 0:02:03.4]} 13... O-O-O
{[%clk 0:02:12.3]} 14. Bc4 {[%clk 0:02:02.9]} 14... Ne7 {[%clk 0:02:06.4]} 15.
Rhe1 {[%clk 0:02:00.5]} 15... Bg4 {[%clk 0:01:53]} 16. Re3 {[%clk 0:01:54.9]}
16... Nf5 {[%clk 0:01:50.9]} 17. Ra3 {[%clk 0:01:55.5]} 17... Bxf3 {[%clk
0:01:41.6]} 18. Rxf3 {[%clk 0:01:47.7]} 18... Nd4 {[%clk 0:01:37.8]} 19. Rg3
{[%clk 0:01:43.7]} 19... g5 {[%clk 0:01:34.7]} 20. b4 {[%clk 0:01:38.5]} 20...
b5 {[%clk 0:01:28.3]} 21. Rxd4 {[%clk 0:01:03.2]} 21... exd4 {[%clk 0:01:23.1]}
22. Bb3 {[%clk 0:01:04.1]} 22... Rhe8 {[%clk 0:01:20.2]} 23. Kd2 {[%clk
0:01:02.6]} 23... Re4 {[%clk 0:01:14.9]} 24. Rf3 {[%clk 0:00:39]} 24... Rf4
{[%clk 0:01:06.2]} 25. Rxf4 {[%clk 0:00:37.6]} 25... gxf4 {[%clk 0:01:07.1]} 26.
Kd3 {[%clk 0:00:29]} 26... Rg8 {[%clk 0:01:04.8]} 27. g3 {[%clk 0:00:20.6]}
27... fxg3 {[%clk 0:01:04.8]} 28. fxg3 {[%clk 0:00:21.5]} 28... Rg4 {[%clk
0:00:56.8]} 29. Bd1 {[%clk 0:00:21.2]} 29... Rg5 {[%clk 0:00:40]} 30. Kxd4
{[%clk 0:00:21.4]} 30... Re5 {[%clk 0:00:37.6]} 31. h4 {[%clk 0:00:17.7]} 31...
a6 {[%clk 0:00:36.5]} 32. a4 {[%clk 0:00:12.7]} 32... Re1 {[%clk 0:00:34.4]} 33.
Bc2 {[%clk 0:00:11.7]} 33... Rc1 {[%clk 0:00:32.6]} 34. Bf5+ {[%clk 0:00:11]}
34... Kb7 {[%clk 0:00:30.4]} 35. axb5 {[%clk 0:00:11.9]} 35... axb5 {[%clk
0:00:31.2]} 36. Bxh7 {[%clk 0:00:10.4]} 36... Rc4+ {[%clk 0:00:30.6]} 37. Ke3
{[%clk 0:00:11.1]} 37... Rxb4 {[%clk 0:00:29.6]} 38. h5 {[%clk 0:00:11.7]} 38...
Rb2 {[%clk 0:00:27.1]} 39. g4 {[%clk 0:00:07.1]} 39... b4 {[%clk 0:00:22.1]} 40.
Be4 {[%clk 0:00:07.3]} 40... Kc8 {[%clk 0:00:12.9]} 41. h6 {[%clk 0:00:06.1]}
41... Rh2 {[%clk 0:00:12.3]} 42. h7 {[%clk 0:00:07]} 42... b3 {[%clk 0:00:12.5]}
43. Kf4 {[%clk 0:00:03.3]} 43... b2 {[%clk 0:00:12.4]} 44. Kg3 {[%clk
0:00:02.9]} 44... Rh6 {[%clk 0:00:10.6]} 45. Bf5+ {[%clk 0:00:01.7]} 45... Kd8
{[%clk 0:00:10.7]} 46. Kf4 {[%clk 0:00:02.6]} 46... Ke7 {[%clk 0:00:11]} 47. g5
{[%clk 0:00:03.2]} 47... fxg5+ {[%clk 0:00:10.3]} 48. Kxg5 {[%clk 0:00:04.1]}
48... Rh2 {[%clk 0:00:10.2]} 49. Kf4 {[%clk 0:00:03.9]} 49... Rf2+ {[%clk
0:00:10.3]} 50. Kg4 {[%clk 0:00:03.6]} 50... Rxf5 {[%clk 0:00:10.3]} 51. h8=Q
{[%clk 0:00:03.9]} 51... b1=Q {[%clk 0:00:10.9]} 52. Qh7+ {[%clk 0:00:03.9]}
52... Kf6 {[%clk 0:00:10.2]} 53. Qh6+ {[%clk 0:00:03.7]} 53... Ke5 {[%clk
0:00:10.5]} 54. Qe3+ {[%clk 0:00:02.4]} 54... Kxd5 {[%clk 0:00:09.9]} 55. Qd2+
{[%clk 0:00:02.5]} 55... Kxc5 {[%clk 0:00:09.1]} 56. Qc3+ {[%clk 0:00:03]} 56...
Kd5 {[%clk 0:00:09]} 57. Qa5+ {[%clk 0:00:02.4]} 57... c5 {[%clk 0:00:07.5]} 58.
Qd8+ {[%clk 0:00:02.6]} 58... Kc4 {[%clk 0:00:07.3]} 59. Qg8+ {[%clk 0:00:02.3]}
59... Rd5 {[%clk 0:00:07.4]} 0-1